{"text_format":"2","workbook":"xlsx","n_sheets":1,"sheets":["Munka1"],"not_rendered":{"charts":0,"images":0,"macros":0,"external_links":0,"defined_names":0,"comments":0,"pivot_tables":0},"unopened":[],"bounds":{"document_bytes":16777216,"sheet_cells":100000,"run_cost":"one","rows_first":2000,"rows_last":500,"rows_between":2000,"halvings":0,"cell_chars":16384,"cell_head_chars":4096},"cells_cut":0,"cells_raw":0,"read":"whole","date_system":"1900"}

{"sheet":"Munka1","index":0,"n_rows":38,"n_cols":8,"rows_kept":38,"cut":false,"hidden":false,"merged":[[21,6,21,7],[37,6,37,7]]}
[null,null,"KÖLTSÉGVETÉS"]
[]
[null,"                                              Biológia laborátalakítás elektromos munkák"]
[]
["Ssz.","Tétel szövege","Menny.","Egység","Anyag egységár","Díj egységre","Anyag összesen","Díj összesen"]
[1,"Elektromos bontási munkákra előirányzat",1,"klt",0,10000,{"$f":"ROUND(C6*E6, 0)","v":0},{"$f":"ROUND(C6*F6, 0)","v":10000}]
[2,"Meglévő világítási hálózat szétválasztása",1,"klt",0,2000,0,2000]
[3,"Merev, simafalú műanyag védőcső elhelyezése, elágazó dobozokkal, horonyvéséssel, vékonyfalú kivitelben, könnyű mechanikai igénybevételre, Névleges méret: 11-16 mm HYDRO-THERM beltéri Mü III. vékonyfalú, hajlítható merev műanyag szürke védőcső 16 mm, Kód: MU-III 16",16,"m      ",92,620,1472,9920]
[4,"Műanyag vezetékcsatorna, padlószegélycsatorna elhelyezése előre elkészített tartószerkezetre szerelve, idomdarabokkal, szélesség:  40 mm-ig LEGRAND DLP mini csatorna 40x16 mm, fehér, R: 0 300 31",8,"m",1149,754,9192,6032]
[5,"Szigetelt vezeték elhelyezése védőcsőbe húzva vagy vezetékcsatornába fektetve, rézvezetővel, leágazó kötésekkel, szigetelés ellenállás méréssel, a szerelvényekhez csatlakozó vezetékvégek bekötése nélkül, keresztmetszet: 0,5-2,5 mm2 PannonCom-Kábel H07V-U 450/750V 1x1,5 mm2, tömör rézvezetővel (MCu)",40,"m      ",66,250,2640,10000]
[6,"Szigetelt vezeték elhelyezése védőcsőbe húzva vagy vezetékcsatornába fektetve, rézvezetővel, leágazó kötésekkel, szigetelés ellenállás méréssel, a szerelvényekhez csatlakozó vezetékvégek bekötése nélkül, keresztmetszet: 0,5-2,5 mm2 PannonCom-Kábel H07V-U 450/750V 1x2,5 mm2, tömör rézvezetővel (MCu)",40,"m      ",85,250,3400,10000]
[null,"Tűzjelző kábel JB-Y(ST)H 2x2x08 mm2",5,"m",200,150,1000,750]
[8,"Komplett világítási  és telekommunikációs szerelvények, Csatlakozóaljzat elhelyezése, süllyesztve, 16A, földelt, egyes csatlakozóaljzat (2P+F) LEGRAND Valena 2P+F csatlakozóaljzat",10,"db     ",1538,850,15380,8500]
[null,"Világítási kapcsoló, fényerő szabályzós"]
[9,"Meglévő folyosói elosztóban leágazás kialakítása új dugalj áramkörök részére  1db 30 A,30mA, 2p. ÁVK, 2 db 16 A 1p kismegszakító",1,"db",25000,5200,25000,5200]
[11,"Oldalfalra szerelhető kijárat mutató 8 W, 1 órás akkumulátorral.",1,"db",12870,2800,12870,2800]
[12,"Mennyezeti optikai füstérzékelő, aljzattal a meglévővel azonos típusú",1,"db     ",12000,850,12000,850]
[14,"Érintésvédelmi mérés és jegyzőkönyv készítése",1,"klt",4000,25000,{"$f":"ROUND(C18*E18, 0)","v":4000},{"$f":"ROUND(C18*F18, 0)","v":25000}]
[]
[null,"ÖSSZESEN:",{"$nulls":4},{"$f":"SUM(G6:G19)","v":86954},{"$f":"SUM(H6:H19)","v":91052}]
[]
[null,"ANYAG+DÍJ ÖSSZESEN",{"$nulls":4},{"$f":"G20+H20","v":178006}]
[]
[null,null,"421 számú szoba"]
[]
[3,"Merev, simafalú műanyag védőcső elhelyezése, elágazó dobozokkal, horonyvéséssel, vékonyfalú kivitelben, könnyű mechanikai igénybevételre, Névleges méret: 11-16 mm HYDRO-THERM beltéri Mü III. vékonyfalú, hajlítható merev műanyag szürke védőcső 16 mm, Kód: MU-III 16",10,"m      ",0,0,{"$f":"ROUND(C26*E26, 0)","v":0},{"$f":"ROUND(C26*F26, 0)","v":0}]
[4,"Műanyag vezetékcsatorna, padlószegélycsatorna elhelyezése előre elkészített tartószerkezetre szerelve, idomdarabokkal, szélesség:  40 mm-ig LEGRAND DLP mini csatorna 40x16 mm, fehér, R: 0 300 31",20,"m",0,0,0,0]
[9,"Meglévő folyosói elosztóban leágazás kialakítása új dugalj áramkör részére  1db 16 A,30mA, 2p. ÁVK, 1 db 16 A 1p kismegszakító",1,"db",15000,3500,15000,3500]
[null,"Falátfúrás 1 szál kábel részére, helyreállítással",2,"db",0,0,{"$f":"ROUND(C29*E29, 0)","v":0},{"$f":"ROUND(C29*F29, 0)","v":0}]
[null,"MBCu 3x2,5 mm2 kábel",30,"m",0,0,0,0]
[8,"Komplett világítási  és telekommunikációs szerelvények, Csatlakozóaljzat elhelyezése, süllyesztve, 16A, földelt, egyes csatlakozóaljzat (2P+F) LEGRAND Valena 2P+F csatlakozóaljzat",4,"db     ",0,0,{"$f":"ROUND(C31*E31, 0)","v":0},{"$f":"ROUND(C31*F31, 0)","v":0}]
[14,"Érintésvédelmi mérés és jegyzőkönyv készítése",1,"klt",0,0,{"$f":"ROUND(C32*E32, 0)","v":0},{"$f":"ROUND(C32*F32, 0)","v":0}]
[]
[]
[]
[null,"ÖSSZESEN:",{"$nulls":4},{"$f":"SUM(G26:G27)","v":0},{"$f":"SUM(H26:H27)","v":0}]
[]
[null,"ANYAG+DÍJ ÖSSZESEN",{"$nulls":4},{"$f":"G36+H36","v":0}]